bitfinex-derivatives/quotes_ETHF0:USTF0_20250220
["timestamp","ask_amount","ask_price","bid_price","bid_amount"]
[1740066918396,3.2078,2720.3,2719.8,2.639]
[1740066918397,0.73515,2719.9,2719.8,2.639]
[1740066918594,0.73524,2719.6,2719.5,1.28474]
[1740066918791,0.5818,2719.8,2719.4,3.2078]
[1740066918988,0.73522,2719.7,2719.6,0.73523]
[1740066919190,0.5818,2719.8,2719.4,3.2078]
[1740066919398,0.5818,2719.8,2719.4,3.94308]
[1740066919590,0.73522,2719.7,2719.6,0.73523]
[1740066919797,0.5818,2719.8,2719.4,3.2078]
[1740066920294,0.73521,2719.7,2719.5,0.73524]
[1740066920496,0.73524,2719.6,2719.5,0.73524]
[1740066920705,1.317,2719.8,2719.7,0.73521]
[1740066920993,0.5818,2719.8,2719.7,0.73521]
[1740066921191,3.21332079,2720.6,2719.7,5.8468]
[1740066921498,3.21332079,2720.6,2720.0,3.2078]
[1740066921795,0.73503,2720.4,2720.3,0.73504]
[1740066923297,0.00552079,2720.6,2720.5,0.73499]
[1740066923598,0.735,2720.5,2720.4,0.73501]
[1740066923794,0.735,2720.5,2720.4,0.73499]
[1740066924090,0.00552079,2720.6,2720.3,0.00552079]
[1740066924292,0.73502,2720.5,2720.4,0.73501]
[1740066924996,0.00552079,2720.6,2720.3,0.00552079]
[1740066925196,0.73499,2720.5,2720.4,0.735]
[1740066925389,0.735,2720.5,2720.4,0.735]
[1740066925586,0.00552079,2720.6,2720.3,0.00552079]
[1740066925790,0.73501,2720.5,2720.4,0.73502]
[1740066925996,0.00552079,2720.6,2720.5,0.73499]
[1740066926401,3.21332079,2720.6,2718.6,3.2078]
[1740066926599,3.2078,2719.4,2718.7,1.1454]
[1740066926994,0.73533,2719.3,2718.7,1.1454]
[1740066927194,0.73534,2719.2,2719.0,0.73538]
[1740066927398,3.2078,2719.4,2718.7,3.7834]
[1740066927595,0.73544,2718.9,2718.7,1.88087]
[1740066927898,0.73544,2718.9,2718.6,3.2078]
[1740066927899,0.73542,2718.9,2718.8,0.00552079]
[1740066928493,3.2078,2719.1,2718.8,0.00552079]
[1740066928900,0.00552079,2719.3,2718.8,0.00552079]
[1740066929293,0.00552079,2719.3,2718.8,0.58232079]
[1740066929493,0.73539,2719.1,2718.8,1.31776079]
[1740066929692,0.00552079,2719.3,2719.1,0.73535]
[1740066929987,0.00552079,2719.3,2719.2,3.94314]
[1740066930388,0.00552079,2719.3,2719.2,4.49484]
[1740066930591,0.00552079,2719.3,2719.2,24.09484]
[1740066931296,0.00552079,2719.3,2719.2,23.3595]
[1740066931500,0.00552079,2719.3,2719.2,24.09484]
[1740066932499,4.52683,2720.1,2719.7,0.73519]
[1740066932799,0.73516,2719.9,2719.6,0.73521]
[1740066933199,3.7917,2720.1,2719.5,2.638]
[1740066933399,0.73515,2720.0,2719.7,0.7352]
[1740066933591,3.79722079,2720.1,2719.5,2.638]
[1740066933800,4.53233079,2720.1,2719.8,0.73517]
[1740066933994,3.79722079,2720.1,2720.0,0.73513]
[1740066934199,3.21332079,2720.1,2719.6,0.562]
[1740066934396,3.21332079,2720.1,2719.9,0.73514]
[1740066934596,3.21332079,2720.1,2719.6,0.562]
[1740066934994,3.21332079,2720.1,2719.8,0.73517]
[1740066935195,3.21332079,2720.1,2719.6,0.562]
[1740066935402,3.21332079,2720.1,2719.6,1.29722]
[1740066935702,3.21332079,2720.1,2719.6,1.1174]
[1740066935893,0.73515,2720.0,2719.8,0.73517]
[1740066936094,3.21332079,2720.1,2719.8,0.73517]
[1740066936300,3.21332079,2720.1,2719.6,1.1174]
[1740066936793,3.94844079,2720.1,2719.9,0.73515]
[1740066936994,0.00552079,2720.1,2719.8,3.2078]
[1740066937195,0.00552079,2720.1,2720.0,0.73513]
[1740066942298,3.2078,2721.1,2720.0,6.0]
[1740066942605,3.94257,2721.4,2721.2,0.73479]
[1740066942804,3.2078,2721.4,2720.8,5.8458]
[1740066942999,3.2078,2721.4,2720.9,20.33487]
[1740066943194,0.73481,2721.2,2721.0,0.73484]
[1740066943402,3.2078,2721.4,2720.7,3.2078]
[1740066943703,0.5601,2721.3,2721.2,0.7348]
[1740066944097,0.00552079,2721.4,2721.3,0.73478]
[1740066944804,0.00552079,2721.4,2721.0,3.2078]
[1740066945399,0.00552079,2721.4,2721.1,0.73483]
[1740066945598,0.73482,2721.2,2721.0,3.94264]
[1740066946001,0.5601,2721.1,2721.0,3.94264]
[1740066946200,0.5601,2721.1,2720.8,0.74041079]
[1740066946401,0.73487,2721.0,2720.8,0.74041079]
[1740066946595,3.2078,2721.2,2720.8,0.00552079]
[1740066947100,0.73483,2721.1,2720.8,0.00552079]
[1740066947402,0.73484,2721.1,2720.9,0.73488]
[1740066947706,3.2078,2721.2,2720.9,0.73486]
[1740066947908,0.73486,2721.0,2720.9,0.73486]
[1740066948205,0.73485,2721.1,2721.0,0.73486]
[1740066948404,3.9426,2721.2,2721.1,0.73483]
[1740066948602,3.2078,2721.2,2721.1,0.73483]
[1740066948801,3.2078,2721.2,2720.8,1.84278079]
[1740066948802,0.73484,2721.1,2721.0,0.73484]
[1740066949004,3.2078,2721.2,2721.1,0.73483]
[1740066949202,0.73484,2721.1,2721.0,0.73484]
[1740066949610,0.73484,2721.1,2721.0,0.73486]
[1740066949811,0.73486,2721.0,2720.9,0.73487]
[1740066950407,3.765,2721.2,2720.8,0.00552079]
[1740066950608,4.49982,2721.2,2721.1,0.73483]
[1740066950803,0.5767,2721.3,2721.2,0.7348]
[1740066951112,0.00552079,2721.4,2721.3,0.73478]
[1740066952911,0.00552079,2721.4,2721.3,3.94258]
[1740066954809,0.00552079,2721.4,2721.3,3.2078]
[1740066955017,0.74027079,2721.4,2721.3,3.94258]
[1740066955207,0.74027079,2721.4,2721.3,3.2078]
[1740066955515,0.74027079,2721.4,2721.3,3.94258]
[1740066955713,0.00552079,2721.4,2721.3,3.94258]
[1740066956216,0.00552079,2721.4,2721.0,5.02273]
[1740066956217,0.73478,2721.3,2721.2,0.73479]
[1740066956512,0.73481,2721.2,2721.0,3.2078]
[1740066956712,0.5478,2721.2,2720.8,0.00552079]
[1740066956914,0.73488,2720.9,2720.8,0.00552079]
[1740066957213,0.5478,2721.2,2721.0,0.73484]
[1740066957411,0.5478,2721.2,2721.1,0.73483]
[1740066958617,1.28261,2721.2,2721.0,0.73484]
[1740066958908,1.28261,2721.2,2721.0,0.73483]
[1740066959112,0.5478,2721.2,2720.8,0.00552079]
[1740066959306,0.73488,2720.9,2720.8,0.00552079]
[1740066959615,0.5478,2721.2,2720.8,0.00552079]
[1740066960211,0.73488,2720.9,2720.8,0.00552079]
[1740066960408,0.735,2720.5,2720.1,2.636]
[1740066960607,1.1416,2720.4,2720.1,2.636]
[1740066960813,3.2078,2721.0,2720.2,19.6]
[1740066961012,5.08427,2721.0,2720.8,0.73489]
[1740066961213,4.3494,2721.0,2720.4,3.2078]
[1740066961614,0.73493,2720.8,2720.4,3.21332079]
[1740066961820,4.3494,2721.0,2720.4,3.21332079]
[1740066962023,4.3494,2721.0,2720.9,0.73488]
[1740066962610,4.3494,2721.0,2720.8,0.73489]
[1740066962810,4.3494,2721.0,2720.4,5.05082079]
[1740066963108,0.7349,2720.9,2720.8,0.7349]
[1740066963312,0.73493,2720.8,2720.7,0.73494]
[1740066963512,0.5871,2720.9,2720.8,0.73491]
[1740066963712,1.32198,2720.9,2720.8,0.73491]
[1740066963905,0.5871,2720.9,2720.8,0.73491]
[1740066964518,4.3494,2721.0,2720.5,1.83744]
[1740066964519,1.1416,2721.0,2720.9,0.73488]
[1740066964811,3.94258,2721.3,2720.7,3.2078]
[1740066965013,3.2078,2721.0,2720.5,0.73497]
[1740066965210,0.73497,2720.6,2720.4,0.74052079]
[1740066965407,0.54,2720.5,2720.4,0.74052079]
[1740066965618,0.54,2720.5,2720.4,0.00552079]
[1740066965814,1.27499,2720.5,2720.4,0.00552079]
[1740066966009,1.83758,2720.4,2718.6,3.2078]
[1740066966314,3.2078,2719.3,2718.7,0.5429]
[1740066966519,0.73538,2719.1,2718.8,0.73545]
[1740066966815,0.73538,2719.1,2718.6,3.2078]
[1740066967019,1.1134,2719.2,2719.1,0.73537]
[1740066967218,1.1134,2719.2,2718.6,3.2078]
[1740066967518,1.11892079,2719.2,2719.0,0.73538]
[1740066967715,0.00552079,2719.2,2719.1,0.73537]
[1740066968412,7.9e-07,2719.2,2719.1,0.73537]
[1740066968813,7.9e-07,2719.2,2719.1,1.27827]
[1740066969022,7.9e-07,2719.2,2719.1,20.87827]
[1740066969420,7.9e-07,2719.2,2719.1,26.87827]
[1740066970227,7.9e-07,2719.2,2719.1,27.45417]
[1740066970426,0.5523,2720.2,2720.1,0.7351]
[1740066970626,1.1503,2720.4,2719.9,3.2078]
[1740066970927,1.1503,2720.4,2720.0,0.73511]
[1740066971127,1.1503,2720.4,2720.1,19.6]
[1740066971325,0.73506,2720.3,2720.1,19.6]
[1740066971626,0.73507,2720.2,2720.0,0.00552079]
[1740066971826,0.73508,2720.2,2720.0,0.00552079]
[1740066972026,1.1503,2720.4,2720.0,0.00552079]
[1740066972027,0.7351,2720.1,2720.0,0.00552079]
[1740066972223,0.73505,2720.3,2720.0,0.00552079]
[1740066972432,0.73507,2720.3,2720.0,0.00552079]
[1740066972723,0.7351,2720.1,2720.0,0.00552079]
[1740066973329,0.73523,2719.7,2719.1,6.3877]
[1740066973528,0.5412,2719.6,2719.4,0.73529]
[1740066973822,3.2078,2719.5,2719.1,3.2078]
[1740066974022,0.73534,2719.2,2719.1,3.2078]
[1740066974333,0.73534,2719.2,2719.0,0.73538]
[1740066974334,3.2078,2719.2,2719.0,0.73538]
[1740066974519,3.2078,2719.2,2719.1,0.73537]
[1740066974723,7.11739,2719.5,2719.2,0.73533]
[1740066974922,0.00552079,2719.4,2719.3,0.73531]
[1740066977036,0.00552079,2719.4,2719.3,20.33531]
[1740066978531,0.73536,2719.2,2718.9,0.74094079]
[1740066978731,4.7125,2719.3,2718.9,0.00552079]
[1740066978934,0.7354,2719.0,2718.9,0.00552079]
[1740066980735,3.9432,2719.0,2718.9,0.00552079]
[1740066980933,9.9432,2719.0,2718.9,0.00552079]
[1740066981129,9.9432,2719.0,2718.1,0.5912]
[1740066981130,1.83857,2718.9,2718.1,3.799]
[1740066981336,0.73552,2718.6,2718.4,0.73555]
[1740066981931,0.5655,2718.5,2718.4,0.73555]
[1740066982439,1.30103,2718.5,2718.4,0.73555]
[1740066982837,0.5655,2718.5,2718.4,0.73555]
[1740066983035,3.9433,2718.7,2718.2,0.00552079]
[1740066983241,3.2078,2718.7,2718.6,0.73551]
[1740066983541,0.73552,2718.6,2718.4,0.73554]
[1740066983837,3.2078,2718.7,2718.6,0.73551]
[1740066984037,0.73552,2718.6,2718.5,0.73553]
[1740066984238,3.2078,2718.7,2718.2,0.00552079]
[1740066984440,0.73552,2718.6,2718.5,0.73552]
[1740066984636,3.2078,2718.7,2718.5,0.73552]
[1740066984836,1.1518,2718.8,2718.2,0.00552079]
[1740066984837,1.1518,2718.8,2718.3,3.2078]
[1740066985136,1.1518,2718.8,2718.7,0.73548]
[1740066985342,0.5655,2718.8,2718.7,0.73548]
[1740066985939,1.30095,2718.8,2718.7,0.73548]
[1740066986238,0.7355,2718.7,2718.6,0.7355]
[1740066986435,0.5655,2718.8,2718.3,3.2078]
[1740066986740,0.5655,2718.8,2718.7,0.73548]
[1740066987837,3.9432,2719.0,2718.9,0.73542]
[1740066988240,3.2078,2719.0,2718.9,0.73542]
[1740066988435,2.637,2719.1,2718.6,1.83873]
[1740066988637,0.5424,2719.2,2719.1,0.73537]
[1740066988836,0.5585,2719.3,2718.9,3.2078]
[1740066988837,0.5585,2719.3,2719.2,0.73534]
[1740066989444,0.74082079,2719.4,2719.3,0.73532]
[1740066989649,0.00552079,2719.4,2719.3,0.73532]
[1740066990347,0.74081079,2719.4,2719.3,0.73532]
[1740066991949,0.73537,2719.2,2719.1,0.73535]
[1740066992159,0.73533,2719.3,2719.2,0.73532]
[1740066992448,0.00552079,2719.4,2719.0,0.5844]
[1740066992749,0.73542,2719.0,2718.9,0.7354]
[1740066992955,0.73539,2719.1,2719.0,0.73538]
[1740066993555,0.73544,2719.0,2718.9,0.73542]
[1740066993754,0.73546,2718.9,2718.8,0.73544]
[1740066994243,0.73541,2719.0,2718.9,0.7354]
[1740066994847,0.73539,2719.1,2719.0,0.73537]
[1740066995043,3.2078,2719.3,2718.6,3.2078]
[1740066995243,3.94314,2719.3,2719.2,0.73534]
[1740066995443,3.2078,2719.3,2718.8,1.83864]
[1740066995652,0.73536,2719.2,2719.1,0.73534]
[1740066996155,3.2078,2719.3,2719.2,0.73534]
[1740066996354,0.00552079,2719.4,2718.8,1.83864]
[1740066996554,0.74083079,2719.4,2719.3,0.73532]
[1740066996758,0.73537,2719.2,2719.1,0.73535]
[1740066997248,3.2078,2719.3,2718.6,3.2078]
[1740066997452,0.73537,2719.2,2719.1,0.73534]
[1740066997851,3.94313,2719.3,2719.2,0.73534]
[1740066999053,0.73544,2718.9,2718.8,0.73541]
[1740066999357,0.73539,2719.1,2719.0,0.73537]
[1740066999852,3.2078,2719.3,2718.6,3.2078]
[1740067000156,0.73543,2719.0,2718.9,0.73539]
[1740067000351,5.04612,2719.3,2718.6,3.2078]
[1740067000555,1.83846,2719.1,2718.4,1.1559]
[1740067000753,0.73553,2718.6,2718.5,0.73551]
[1740067001558,0.73553,2718.5,2718.4,1.89143]
[1740067001758,0.73553,2718.6,2718.5,0.7355]
[1740067002460,0.73553,2718.6,2718.5,0.73552]
[1740067002954,0.73551,2718.7,2718.6,0.73548]
[1740067003162,0.73555,2718.5,2718.4,0.73553]
[1740067003552,2.40656,2718.8,2718.3,3.2078]
[1740067003553,0.5679,2718.8,2718.3,3.2078]
[1740067003756,0.73556,2718.5,2718.4,0.73554]
[1740067004656,2.637,2718.7,2718.3,3.2078]
[1740067005053,3.2078,2718.6,2718.2,0.00552079]
[1740067005257,0.73559,2718.3,2718.2,0.00552079]
[1740067005655,0.73559,2718.3,2718.2,0.74113079]
[1740067006060,0.73559,2718.3,2718.2,0.00552079]
[1740067006356,0.73559,2718.3,2718.2,0.74113079]
[1740067006560,0.73558,2718.4,2718.3,0.73557]
[1740067007251,0.73559,2718.3,2718.2,1.31581079]
[1740067007658,2.637,2718.7,2718.2,0.58022079]
[1740067007957,0.73559,2718.3,2718.2,1.31581079]
[1740067008763,2.637,2718.7,2718.3,0.73558]
[1740067008764,0.73558,2718.4,2718.3,0.73558]
[1740067009362,2.637,2718.7,2718.2,0.58022079]
[1740067009563,0.73558,2718.4,2718.3,0.73557]
[1740067009763,3.2078,2718.6,2718.2,0.00552079]
[1740067009962,0.73559,2718.3,2718.2,0.00552079]
[1740067012366,6.58039,2718.3,2718.2,0.00552079]
[1740067013063,6.58039,2718.3,2717.5,20.1669]
[1740067013064,0.73578,2717.6,2717.5,20.1669]
[1740067013266,0.73578,2717.6,2717.5,0.5669]
[1740067013769,0.73578,2717.6,2717.5,1.3027]
[1740067013962,6.3998,2717.9,2717.5,0.5669]
[1740067014164,0.73573,2717.8,2717.7,0.73573]
[1740067014559,3.192,2717.9,2717.8,0.73572]
[1740067014763,2.637,2717.9,2717.8,0.73572]
[1740067014966,2.99752079,2718.0,2717.9,0.7357]
[1740067015566,2.99752079,2718.0,2717.5,2.40638]
[1740067015760,2.99752079,2718.0,2717.5,0.5669]
[1740067015973,2.99752079,2718.0,2717.6,0.73575]
[1740067015974,0.73576,2717.7,2717.6,0.73575]
[1740067016172,2.99752079,2718.0,2717.5,0.5669]
[1740067016566,0.73571,2717.9,2717.8,0.7357]
[1740067016769,0.7357,2717.9,2717.8,0.7357]
[1740067017171,2.99752079,2718.0,2717.5,0.5669]
[1740067017365,0.73574,2717.8,2717.7,0.73573]
[1740067017563,2.99752079,2718.0,2717.5,0.5669]
[1740067017770,0.73578,2717.6,2717.5,0.5669]
[1740067018162,5.61855,2717.9,2717.2,0.5605]
[1740067018163,0.73586,2717.3,2717.2,1.29637]
[1740067018469,0.73588,2717.2,2717.1,3.9437]
[1740067018772,0.73588,2717.2,2717.1,3.2078]
[1740067019272,0.73599,2716.8,2716.7,0.736]
[1740067019567,0.5804,2717.1,2716.7,0.736]
[1740067019773,0.73597,2716.9,2716.5,1.1172]
[1740067020162,0.5526,2717.0,2716.5,1.1172]
[1740067020366,3.2078,2717.2,2716.6,1.84013]
[1740067020569,3.2078,2717.2,2717.1,0.73591]
[1740067020972,5.629,2717.4,2717.3,0.73586]
[1740067021172,6.4135,2717.8,2717.1,1.83979]
[1740067021374,6.4135,2717.8,2717.5,0.73579]
[1740067021674,6.4135,2717.8,2717.5,0.73578]
[1740067021873,0.73576,2717.7,2717.5,0.73578]
[1740067022172,0.73578,2717.6,2717.5,0.73578]
[1740067022373,6.4135,2717.8,2717.5,0.7358]
[1740067022672,0.73579,2717.6,2717.4,0.73581]
[1740067022871,0.73581,2717.5,2717.2,0.5833]
[1740067023179,1.2734,2717.9,2717.7,0.73575]
[1740067023474,0.00552079,2718.0,2717.9,0.7357]
[1740067023870,0.73572,2717.8,2717.7,0.5895]
[1740067024276,1.14242079,2718.0,2717.2,6.4281]
[1740067024474,1.14242079,2718.0,2717.3,0.5895]
[1740067024475,4.32272079,2718.0,2717.3,0.5895]
[1740067024671,4.32272079,2718.0,2717.5,0.7358]
[1740067024875,0.73578,2717.6,2717.5,0.7358]
[1740067025076,4.32272079,2718.0,2717.3,0.5895]
[1740067025773,0.73577,2717.7,2717.5,0.73579]
[1740067026076,3.2078,2717.8,2717.2,0.5833]
[1740067026277,3.2078,2717.8,2717.0,0.5528]
[1740067026476,0.73585,2717.4,2717.3,0.73586]
[1740067026672,2.992,2717.7,2717.2,0.73587]
[1740067026874,0.73586,2717.3,2717.2,0.73587]
[1740067027277,2.992,2717.7,2717.2,0.73587]
[1740067027578,0.73591,2717.1,2717.0,0.5528]
[1740067027777,3.2078,2717.2,2716.5,3.2078]
[1740067027979,0.73605,2716.6,2716.1,3.8018]
[1740067028280,3.2078,2716.9,2716.2,19.6]
[1740067028281,0.29977886,2716.8,2716.2,19.6]
[1740067028472,0.73611,2716.4,2716.2,20.33614]
[1740067028674,3.21332079,2716.6,2716.1,0.594]
[1740067028874,2.637,2716.5,2716.0,0.5528]
[1740067029476,0.73617,2716.2,2716.0,0.5528]
[1740067029680,2.637,2716.5,2716.0,0.5528]
[1740067029885,0.73619,2716.1,2715.8,0.73624]
[1740067030082,3.2078,2716.3,2715.7,3.2078]
[1740067030278,3.2078,2716.0,2715.4,0.5824]
[1740067030482,2.637,2716.0,2715.4,23.3902]
[1740067030672,2.992,2716.1,2716.0,0.73621]
[1740067030877,3.21332079,2716.6,2716.0,0.73621]
[1740067030878,0.00552079,2716.6,2716.5,0.73607]
[1740067033681,7.9e-07,2716.6,2716.5,0.73607]
[1740067037186,7.9e-07,2716.6,2716.5,20.33607]
[1740067037483,7.9e-07,2716.6,2716.5,0.73607]
[1740067037779,7.9e-07,2716.6,2716.3,0.00552079]
[1740067037977,3.20780079,2716.6,2716.3,0.00552079]
[1740067038179,0.5633,2716.5,2716.4,0.7361]
[1740067038379,7.9e-07,2716.6,2716.5,0.73607]
[1740067044586,0.5641,2717.1,2716.6,0.00160628]
[1740067044789,0.5641,2717.1,2717.0,0.73594]
[1740067046496,0.5641,2717.1,2716.7,0.5735]
[1740067046694,0.73602,2716.7,2716.6,0.73762628]
[1740067046894,0.73602,2716.7,2716.6,0.00160628]
[1740067046895,3.2078,2716.7,2716.6,0.00160628]
[1740067047094,0.7361,2716.4,2716.2,0.73614]
[1740067048091,0.7361,2716.4,2716.1,3.2078]
[1740067048302,9.2078,2716.4,2715.5,0.5381]
[1740067048497,3.94399,2716.1,2715.9,0.73622]
[1740067048790,0.5858,2716.0,2715.9,0.73622]
[1740067050197,0.5858,2716.0,2715.5,0.5381]
[1740067050498,0.5858,2716.0,2715.2,5.8448]
[1740067050793,1.32202,2716.0,2715.8,0.73625]
[1740067050992,0.00552079,2715.9,2715.8,0.73626]
[1740067051195,3.73377079,2715.9,2715.7,0.73627]
[1740067051391,3.73377079,2715.9,2715.3,1.84101]
[1740067051392,3.55872079,2715.9,2715.2,3.2078]
[1740067051593,0.5625,2715.8,2715.7,0.73627]
[1740067052405,3.55872079,2715.9,2715.2,3.2078]
[1740067052602,0.73633,2715.6,2715.2,3.2078]
[1740067052797,2.638,2715.8,2715.5,0.73634]
[1740067053102,0.73637,2715.4,2715.3,0.73638]
[1740067053297,2.638,2715.8,2715.4,0.73637]
[1740067053498,2.638,2715.8,2715.2,3.2078]
[1740067053699,0.73635,2715.5,2715.2,3.2078]
[1740067053998,2.638,2715.8,2715.2,3.2078]
[1740067054196,0.73633,2715.6,2715.2,3.2078]
[1740067054397,5.8458,2715.8,2715.0,0.5854]
[1740067054597,5.8458,2715.8,2715.1,1.84112]
[1740067054797,5.8458,2715.8,2715.7,0.73629]
[1740067055097,5.8458,2715.8,2715.2,5.04883]
[1740067055398,5.8458,2715.8,2715.0,2.4266]
[1740067055600,6.58208,2715.8,2715.2,1.84104]
[1740067055898,5.8458,2715.8,2715.0,0.5854]
[1740067056202,6.58207,2715.8,2715.7,0.73629]
[1740067056503,8.8378,2715.8,2715.7,0.73629]
[1740067056902,5.63,2715.8,2715.7,0.73629]
[1740067057102,2.992,2715.8,2715.7,0.73629]
[1740067058901,2.992,2715.8,2713.5,4.4340854]
[1740067058902,3.48490454,2715.5,2713.5,4.4340854]
[1740067059105,3.2078,2714.2,2713.4,0.5626]
[1740067059295,3.2078,2714.5,2713.5,22.8078]
[1740067059496,3.2078,2714.5,2714.3,0.73665]
[1740067059701,3.2078,2714.8,2714.4,1.84088854]
[1740067059907,0.74209079,2714.7,2714.3,0.73667]
[1740067060108,0.00552079,2714.7,2714.6,1.84088854]
[1740067060502,0.00552079,2714.7,2714.6,2.57747854]
[1740067060705,0.00552079,2714.7,2714.6,1.84088854]
[1740067060904,0.00552079,2714.7,2714.6,2.57747854]
[1740067061109,0.00552079,2714.7,2714.6,1.84088854]
[1740067061313,0.00552079,2714.7,2714.6,2.57747854]
[1740067061513,0.00552079,2714.7,2714.6,22.17747854]
[1740067061811,3.7482,2715.7,2714.7,1.84088854]
[1740067062106,0.73632,2715.6,2715.5,1.84088854]
[1740067062311,0.73636,2715.5,2715.4,1.84088854]
[1740067063005,0.73636,2715.5,2714.7,3.2205]
[1740067063006,3.2078,2715.3,2713.3,3.2078]
[1740067063315,3.68188,2715.4,2713.6,3.2078]
[1740067063316,3.2078,2714.1,2713.6,3.2078]
[1740067063608,3.2078,2714.4,2714.1,0.73671]
[1740067063903,3.2078,2714.4,2714.2,0.73668]
[1740067064109,3.94445,2714.4,2714.0,0.73675]
[1740067064307,3.2078,2714.1,2713.5,3.2078]
[1740067064505,3.2078,2714.1,2712.6,2.369]
[1740067064506,3.2078,2714.0,2712.9,19.6]
[1740067064711,3.2078,2713.2,2712.5,3.2078]
[1740067065209,0.00552079,2713.1,2713.0,0.73702]
[1740067066206,0.00552079,2713.1,2713.0,3.42702]
[1740067066900,0.00552079,2713.1,2713.0,0.73702]
[1740067067100,3.21332079,2713.1,2712.4,3.2078]
[1740067067509,3.21332079,2713.1,2712.9,0.73704]
[1740067067707,3.21332079,2713.1,2712.5,19.6]
[1740067068007,3.2078,2712.8,2712.5,19.6]
[1740067068207,3.2078,2712.8,2712.1,3.2078]
[1740067068715,3.2078,2712.8,2712.5,0.73716]
[1740067068909,3.2078,2712.8,2712.5,0.73713]
[1740067069214,3.2078,2712.8,2712.2,19.6]
[1740067069716,3.2078,2712.8,2712.3,0.73721]
[1740067069918,3.2078,2712.8,2712.2,19.6]
[1740067071211,3.2078,2712.4,2712.3,0.73721]
[1740067071407,3.2078,2712.4,2712.0,0.00258115]
[1740067071713,3.2078,2712.4,2712.3,0.73721]
[1740067072309,9.2078,2712.4,2712.3,0.73721]
[1740067072617,1.84311,2712.2,2710.6,3.2078]
[1740067072918,3.68561,2712.7,2710.6,3.2078]
[1740067072919,3.2078,2711.8,2710.6,3.2078]
[1740067073215,0.00553108,2711.7,2710.8,3.2078]
[1740067073521,0.00553108,2711.7,2711.6,0.7374]
[1740067074121,3.21333108,2711.7,2711.2,0.5949]
[1740067074321,3.21333108,2711.7,2711.1,3.2078]
[1740067074617,0.00553108,2711.7,2711.6,0.7374]
[1740067076313,1.08e-06,2711.7,2711.6,0.7374]
[1740067076521,3.2078,2712.4,2712.3,0.73721]
[1740067076811,3.2078,2712.7,2712.6,0.73713]
[1740067077216,3.2078,2712.7,2712.6,20.33713]
[1740067077717,0.00553108,2712.9,2712.8,0.73708]
[1740067078721,3.2078,2713.9,2712.9,0.73705]
[1740067078921,3.2078,2713.9,2713.8,0.73681]
[1740067079123,3.2078,2713.9,2713.7,0.73681]
[1740067079327,3.2078,2713.9,2713.8,0.73681]
[1740067080613,0.00553108,2714.1,2713.3,3.2078]
[1740067080818,3.2078,2713.7,2713.6,0.73686]
[1740067081012,3.2078,2714.0,2713.3,2.85]
[1740067081211,0.00553108,2714.1,2713.3,2.85]
[1740067081417,0.00553108,2714.1,2714.0,0.73675]
[1740067082319,1.08e-06,2714.1,2714.0,21.17475]
[1740067082714,1.08e-06,2714.1,2714.0,27.17475]
[1740067082920,3.2078,2715.5,2714.0,46.038]
[1740067083221,3.2078,2715.2,2714.2,3.2078]
[1740067083520,3.7564,2715.5,2715.2,0.73641]
[1740067083717,3.2078,2715.5,2714.6,7.92328]
[1740067083919,3.2078,2715.5,2715.3,0.73638]
[1740067084322,3.2078,2715.5,2714.8,0.00553108]
[1740067084517,3.2078,2715.2,2714.8,0.00553108]
[1740067084722,3.2078,2715.2,2714.9,0.7365]
[1740067085321,3.2078,2715.2,2714.8,0.00553108]
[1740067085844,3.2078,2715.5,2715.1,0.73645]
[1740067086132,3.94416,2715.5,2714.8,0.00553108]
[1740067086322,3.2078,2715.5,2714.8,0.00553108]
[1740067086727,0.73638,2715.4,2715.0,0.73647]
[1740067086927,3.2078,2715.2,2714.9,0.73649]
[1740067087217,3.2078,2715.2,2715.0,0.73647]
[1740067087420,3.2078,2715.2,2714.8,2.86753108]
[1740067087824,3.2078,2715.2,2714.9,0.7365]
[1740067088123,3.2078,2715.2,2714.8,0.00553108]
[1740067088332,3.94431,2714.9,2714.8,0.00553108]
[1740067088829,6.1998,2714.9,2714.1,20.438]
[1740067089027,3.2078,2714.4,2714.3,0.73667]
[1740067090228,3.2078,2714.4,2714.1,20.44353108]
[1740067090532,3.2078,2714.4,2714.3,0.73667]
[1740067091733,6.7742,2715.1,2714.4,1.84162]
[1740067092030,6.7742,2715.1,2714.3,2.859]
[1740067092223,6.7742,2715.1,2714.4,1.84162]
[1740067092424,6.7742,2715.1,2714.3,2.859]
[1740067092624,3.2078,2714.8,2714.3,2.859]
[1740067092823,3.2078,2714.8,2714.7,0.73654]
[1740067093023,3.2078,2714.8,2714.6,0.73657]
[1740067093325,3.2078,2714.8,2714.7,0.73656]
[1740067093626,3.94435,2714.8,2714.5,0.7366]
[1740067094529,3.94435,2714.8,2714.2,3.7529]
[1740067094723,3.2078,2714.8,2714.2,3.7529]
[1740067094929,3.2078,2714.8,2714.7,0.73656]
[1740067097134,0.73658,2714.7,2714.0,3.68365]
[1740067097340,3.2078,2714.8,2714.7,0.73656]
[1740067098030,3.7822,2715.1,2714.7,0.73656]
[1740067098231,6.1998,2715.4,2715.3,0.7364]
[1740067098426,3.2078,2715.4,2715.3,0.7364]
[1740067099233,3.2078,2715.4,2714.9,2.39617]
[1740067099539,3.21333108,2715.7,2715.6,0.73632]
[1740067100439,0.00553108,2715.7,2715.6,0.73632]
[1740067101334,3.21333108,2715.7,2715.5,0.73632]
[1740067101531,3.21333108,2715.7,2715.6,0.73632]
[1740067105042,3.2078,2716.1,2715.4,3.2078]
[1740067105234,1.30712,2716.0,2715.4,3.2078]
[1740067105442,1.30713,2716.0,2715.4,3.2078]
[1740067105636,0.5709,2716.0,2715.5,19.6]
[1740067105835,3.2078,2715.7,2715.5,19.6]
[1740067106040,0.57643108,2716.0,2715.9,0.73624]